bitfinex/quotes_ETHUSD_20240917
["timestamp","ask_amount","ask_price","bid_price","bid_amount"]
[1726550526338,0.08406817,2297.4,2297.2,3.36219516]
[1726550526533,0.08406817,2297.4,2297.1,2.35462816]
[1726550526741,0.08406817,2297.4,2297.2,3.36175461]
[1726550526948,0.08406817,2297.4,2297.1,8.07037191]
[1726550527113,0.08406817,2297.4,2297.2,3.3616676]
[1726550527318,0.08406817,2297.4,2297.3,1.44340817]
[1726550527642,4.35246,2297.6,2297.3,5.25370285]
[1726550527840,0.08440387,2297.4,2297.3,1.44340817]
[1726550528088,4.35256,2297.5,2297.3,1.44340817]
[1726550528342,0.08440387,2297.4,2297.3,1.44340817]
[1726550528723,0.08440387,2297.4,2297.1,10.52347191]
[1726550528930,0.08440387,2297.4,2297.2,3.36163165]
[1726550529155,0.08440387,2297.4,2297.1,10.52347191]
[1726550529341,0.08440387,2297.4,2297.2,3.36196043]
[1726550529551,0.08440387,2297.4,2297.1,10.52347191]
[1726550529751,0.08440387,2297.4,2297.2,3.36171113]
[1726550529955,0.08440387,2297.4,2297.1,10.52347191]
[1726550530116,0.08440387,2297.4,2297.2,3.36175852]
[1726550530117,4.43718387,2297.4,2297.2,3.36175852]
[1726550530313,0.08440387,2297.4,2297.1,4.80772816]
[1726550530513,0.08440387,2297.4,2297.2,1.34471742]
[1726550530737,0.08440387,2297.4,2297.1,3.89650817]
[1726550530928,0.08440387,2297.4,2297.2,1.3445685]
[1726550531236,0.08440387,2297.4,2297.1,5.52200414]
[1726550531555,0.08440387,2297.4,2297.2,1.34457037]
[1726550531726,0.08440387,2297.4,2297.1,5.52200414]
[1726550531935,0.08440387,2297.4,2297.2,1.34451517]
[1726550532182,0.08440387,2297.4,2297.1,5.52200414]
[1726550532322,0.08440387,2297.4,2297.2,1.3445634]
[1726550532529,0.08440387,2297.4,2297.1,5.52200414]
[1726550532726,0.08440387,2297.4,2297.2,1.34451824]
[1726550532982,0.08440387,2297.4,2297.1,5.52200414]
[1726550533257,0.08440387,2297.4,2297.2,1.34453141]
[1726550533459,0.08440387,2297.4,2297.1,5.52200414]
[1726550533667,0.08440387,2297.4,2297.2,1.34448993]
[1726550533958,0.08440387,2297.4,2297.1,5.52200414]
[1726550534166,0.08440387,2297.4,2297.2,1.34440438]
[1726550534466,2.47800387,2297.4,2297.1,3.89650817]
[1726550534638,2.47800387,2297.4,2297.2,1.34444929]
[1726550534944,2.47800387,2297.4,2297.1,3.89650817]
[1726550535127,2.47800387,2297.4,2297.2,1.3443964]
[1726550535423,2.47800387,2297.4,2297.1,3.89650817]
[1726550535620,6.83083387,2297.4,2297.2,1.34434676]
[1726550535821,6.83083387,2297.4,2297.1,3.89650817]
[1726550536025,6.83083387,2297.4,2297.2,1.34435094]
[1726550536219,6.83083387,2297.4,2297.1,3.89650817]
[1726550536526,6.83083387,2297.4,2297.2,1.34437521]
[1726550536870,6.83083387,2297.4,2297.1,3.89650817]
[1726550537181,6.83083387,2297.4,2297.2,1.34435773]
[1726550537330,6.83083387,2297.4,2297.1,3.89650817]
[1726550537521,6.83083387,2297.4,2297.2,1.34433631]
[1726550537722,6.83083387,2297.4,2297.1,3.89650817]
[1726550538068,6.83083387,2297.4,2297.2,1.34433135]
[1726550538227,6.83083387,2297.4,2297.1,3.89650817]
[1726550539681,6.83083387,2297.4,2297.2,1.34400283]
[1726550539888,6.83083387,2297.4,2297.1,3.89650817]
[1726550540055,6.83083387,2297.4,2297.2,1.3440175]
[1726550540243,6.83083387,2297.4,2297.1,3.89650817]
[1726550541571,2.47800387,2297.4,2297.2,1.3439402]
[1726550541770,2.47800387,2297.4,2297.1,3.89650817]
[1726550542008,2.47800387,2297.4,2297.2,1.34398333]
[1726550542270,2.47800387,2297.4,2297.1,3.89650817]
[1726550542466,2.47800387,2297.4,2297.2,1.34394252]
[1726550542679,2.47800387,2297.4,2297.1,3.89650817]
[1726550542986,6.83074387,2297.4,2297.1,3.89650817]
[1726550543755,4.43714387,2297.4,2297.1,3.89650817]
[1726550543960,0.08440387,2297.4,2297.3,9.55800018]
[1726550544189,0.08440387,2297.4,2297.3,12.46140462]
[1726550544483,16.17385,2297.9,2297.3,12.46140462]
[1726550544484,2.3731,2297.8,2297.3,12.46140462]
[1726550544705,0.08160043,2297.4,2297.3,5.26349141]
[1726550544866,2.3731,2297.8,2297.3,7.7112132]
[1726550545050,2.3731,2297.8,2297.4,1.34325147]
[1726550545254,6.80351,2298.0,2297.5,5.69557326]
[1726550545604,6.80351,2298.0,2297.6,1.44340817]
[1726550545757,0.08220669,2297.9,2297.8,1.44340817]
[1726550546172,6.82363,2298.2,2297.8,1.44340817]
[1726550546370,0.08236712,2297.9,2297.8,1.44340817]
[1726550546566,6.82363,2298.2,2297.8,1.44340817]
[1726550546781,0.08239552,2297.9,2297.8,1.44340817]
[1726550546996,6.82363,2298.2,2297.8,2.68533399]
[1726550547196,0.08239552,2297.9,2297.8,1.44340817]
[1726550547406,6.82363,2298.2,2297.8,1.44340817]
[1726550547623,0.08239552,2297.9,2297.8,1.44340817]
[1726550547794,6.82363,2298.2,2297.8,1.44340817]
[1726550548287,0.0825748,2298.1,2297.8,1.44340817]
[1726550548505,0.0825748,2298.1,2297.8,2.68533399]
[1726550549785,0.0825748,2298.1,2297.8,7.03731399]
[1726550550203,0.0825748,2298.1,2298.0,8.07351817]
[1726550550423,0.0825748,2298.1,2298.0,12.42512817]
[1726550550726,9.857,2298.5,2298.1,4.35138]
[1726550550884,2.387,2298.5,2298.2,1.44340817]
[1726550551088,0.08286072,2298.4,2298.2,1.44340817]
[1726550551616,0.08286072,2298.4,2298.0,8.07351817]
[1726550551927,4.35104,2298.3,2297.8,7.99339582]
[1726550552210,4.35104,2298.3,2297.9,1.44340817]
[1726550552413,0.08310565,2298.2,2297.9,1.44340817]
[1726550552821,4.35104,2298.3,2297.9,1.44340817]
[1726550552993,0.08310752,2298.1,2297.9,1.44340817]
[1726550553195,4.35104,2298.3,2297.9,2.69808499]
[1726550553500,0.08301789,2298.0,2297.9,2.69808499]
[1726550554218,4.35104,2298.3,2297.9,2.69808499]
[1726550554426,0.08301789,2298.0,2297.9,1.44340817]
[1726550554633,2.4438,2298.2,2297.9,1.44340817]
[1726550554798,0.08306837,2298.0,2297.9,1.44340817]
[1726550554986,2.4438,2298.2,2297.9,1.44340817]
[1726550555192,0.08306837,2298.0,2297.9,1.44340817]
[1726550555421,2.4438,2298.2,2297.9,1.44340817]
[1726550555623,0.08306837,2298.0,2297.9,7.04987499]
[1726550555828,2.4438,2298.2,2297.9,7.04987499]
[1726550555995,0.08306837,2298.0,2297.9,7.04987499]
[1726550556202,2.4438,2298.2,2297.9,7.04987499]
[1726550556542,0.08306837,2298.0,2297.9,7.04987499]
[1726550556839,0.08306837,2298.0,2297.9,2.69808499]
[1726550557027,2.4438,2298.2,2297.9,2.69808499]
[1726550557234,0.08306837,2298.0,2297.9,2.69808499]
[1726550557414,2.4438,2298.2,2297.9,2.69808499]
[1726550557731,0.08306837,2298.0,2297.9,2.69808499]
[1726550558039,2.4438,2298.2,2297.9,7.04987499]
[1726550558196,0.08306837,2298.0,2297.9,7.04987499]
[1726550558386,2.4438,2298.2,2297.9,7.04987499]
[1726550558642,0.08306837,2298.0,2297.9,1.44340817]
[1726550558821,2.4438,2298.2,2297.9,1.44340817]
[1726550558999,0.08306837,2298.0,2297.9,1.44340817]
[1726550559193,2.4438,2298.2,2297.9,1.44340817]
[1726550559391,0.08306837,2298.0,2297.9,1.44340817]
[1726550559632,2.4438,2298.2,2297.9,1.44340817]
[1726550559832,0.08307221,2298.0,2297.9,1.44340817]
[1726550560132,2.4438,2298.2,2297.9,2.37400323]
[1726550560336,0.08307221,2298.0,2297.9,2.37400323]
[1726550560506,2.4438,2298.2,2297.9,2.37400323]
[1726550560707,0.08307221,2298.0,2297.9,1.44340817]
[1726550562045,2.4438,2298.2,2297.9,1.44340817]
[1726550562235,0.08305644,2298.0,2297.9,1.44340817]
[1726550562419,2.4438,2298.2,2297.9,1.44340817]
[1726550562731,0.08305644,2298.0,2297.9,1.44340817]
[1726550562905,2.4438,2298.2,2297.9,1.44340817]
[1726550563443,0.08314607,2298.1,2297.9,1.44340817]
[1726550568300,4.43474607,2298.1,2297.7,1.44340817]
[1726550568537,0.08314607,2298.1,2297.7,5.79555817]
[1726550568735,0.08314607,2298.1,2297.9,1.44340817]
[1726550573177,4.43465607,2298.1,2297.7,1.44340817]
[1726550573907,4.35163,2298.0,2297.7,1.44340817]
[1726550574109,2.2629,2297.9,2297.7,1.44340817]
[1726550574422,2.34586048,2297.9,2297.7,1.44340817]
[1726550582946,4.35204,2297.8,2297.5,1.44340817]
[1726550583163,6.73998,2297.7,2297.3,1.44340817]
[1726550583384,6.82265705,2297.7,2297.3,1.44340817]
[1726550583553,4.3524,2297.6,2297.3,1.44340817]
[1726550583940,0.08245669,2297.5,2297.3,1.44340817]
[1726550585252,0.08245669,2297.5,2297.2,2.326]
[1726550585460,0.08245669,2297.5,2297.3,2.7847861]
[1726550585680,0.08245669,2297.5,2297.3,1.44340817]
[1726550591639,0.08245669,2297.5,2297.4,1.34244966]
[1726550594117,0.08245669,2297.5,2297.3,1.44340817]
[1726550604555,2.2756,2297.4,2297.3,1.44340817]
[1726550604787,6.71044026,2297.4,2297.1,1.44340817]
[1726550607452,6.71044026,2297.4,2297.1,2.54950913]
[1726550608353,2.35770026,2297.4,2297.3,1.44340817]
[1726550608559,0.08210026,2297.4,2297.3,1.44340817]
[1726550608755,4.3524,2297.6,2297.3,1.44340817]
[1726550608982,4.3524,2297.6,2297.5,1.44340817]
[1726550609701,6.7234,2297.7,2297.5,1.44340817]
[1726550609855,11.8219,2297.9,2297.5,3.77100817]
[1726550610194,7.47,2297.9,2297.8,1.44340817]
[1726550610351,11.07316,2298.0,2297.8,1.44340817]
[1726550610352,6.7214,2298.0,2297.8,1.44340817]
[1726550610548,11.07315,2298.0,2297.8,1.44340817]
[1726550610911,4.35179,2297.9,2297.6,1.44340817]
[1726550611087,6.7214,2298.0,2297.6,1.44340817]
[1726550611594,11.07314,2298.0,2297.6,1.44340817]
[1726550615968,0.08246313,2297.9,2297.6,1.44340817]
[1726550619291,0.08246313,2297.9,2297.6,2.34681913]
[1726550620893,0.08246313,2297.9,2297.6,1.44340817]
[1726550632141,0.08246313,2297.9,2297.7,2.366]
[1726550638758,0.08246313,2297.9,2297.8,1.44340817]
[1726550650374,4.3515,2298.1,2297.8,1.44340817]
[1726550650886,0.07997027,2298.0,2297.8,1.44340817]
[1726550655505,0.07997027,2298.0,2297.9,1.34458224]
[1726550655969,0.07997027,2298.0,2297.8,1.44340817]
[1726550660085,4.43159027,2298.0,2297.8,1.44340817]
[1726550662093,4.43159027,2298.0,2297.7,0.91056141]
[1726550662295,6.76779027,2298.0,2297.8,3.36132492]
[1726550662502,6.76779027,2298.0,2297.7,0.91056141]
[1726550662663,6.76779027,2298.0,2297.8,3.36144018]
[1726550662870,6.76779027,2298.0,2297.7,0.91056141]
[1726550663085,6.76779027,2298.0,2297.8,3.36145071]
[1726550663280,6.76779027,2298.0,2297.7,0.91056141]
[1726550663498,6.76779027,2298.0,2297.8,3.3615396]
[1726550663707,6.76779027,2298.0,2297.7,0.91056141]
[1726550663920,6.76779027,2298.0,2297.8,3.3612968]
[1726550664094,6.76779027,2298.0,2297.7,0.91056141]
[1726550664298,6.76779027,2298.0,2297.8,3.36135958]
[1726550664494,6.76779027,2298.0,2297.9,1.34453185]
[1726550664702,6.76779027,2298.0,2297.9,1.34453038]
[1726550665089,6.76779027,2298.0,2297.7,0.91056141]
[1726550665407,6.76779027,2298.0,2297.8,3.36161973]
[1726550665707,6.76779027,2298.0,2297.7,0.91056141]
[1726550666012,6.76779027,2298.0,2297.8,3.36159126]
[1726550666173,6.76779027,2298.0,2297.9,1.3446365]
[1726550667610,6.76779027,2298.0,2297.7,0.91056141]
[1726550667810,6.76779027,2298.0,2297.8,3.36184541]
[1726550667986,6.76779027,2298.0,2297.7,0.91056141]
[1726550668173,6.76779027,2298.0,2297.8,3.36173552]
[1726550668399,6.76779027,2298.0,2297.9,1.34469421]
[1726550668714,6.76779027,2298.0,2297.9,1.34464601]
[1726550669275,6.76779027,2298.0,2297.7,0.91056141]
[1726550669474,6.76779027,2298.0,2297.8,3.36177246]
[1726550669709,6.76779027,2298.0,2297.7,0.91056141]
[1726550670006,6.76779027,2298.0,2297.8,3.3617297]
[1726550670223,6.76779027,2298.0,2297.7,0.91056141]
[1726550670378,6.76779027,2298.0,2297.8,3.36185078]
[1726550670583,6.76779027,2298.0,2297.7,0.91056141]
[1726550670808,6.76779027,2298.0,2297.8,3.36192298]
[1726550670981,6.76779027,2298.0,2297.7,0.91056141]
[1726550671187,6.76779027,2298.0,2297.8,3.36192623]
[1726550671390,6.76779027,2298.0,2297.7,0.91056141]
[1726550671718,6.76779027,2298.0,2297.8,3.36197405]
[1726550671895,6.76779027,2298.0,2297.7,0.91056141]
[1726550672112,6.76779027,2298.0,2297.8,3.3619557]
[1726550672307,6.76779027,2298.0,2297.7,0.91056141]
[1726550672613,6.76779027,2298.0,2297.8,1.34478197]
[1726550672783,6.76779027,2298.0,2297.6,2.35396958]
[1726550672983,6.76779027,2298.0,2297.7,3.36192408]
[1726550673180,6.76779027,2298.0,2297.8,1.34476963]
[1726550673384,4.3518,2297.9,2297.6,2.35396958]
[1726550673614,0.0798147,2297.8,2297.7,3.36198867]
[1726550674425,0.0798147,2297.8,2297.7,3.3619939]
[1726550675310,0.0798147,2297.8,2297.6,2.35396958]
[1726550675528,0.0798147,2297.8,2297.7,3.36210475]
[1726550675748,4.4317947,2297.8,2297.7,3.36210475]
[1726550676428,4.4317947,2297.8,2297.5,3.23316141]
[1726550676712,4.4317947,2297.8,2297.6,3.36300235]
[1726550676915,4.4317947,2297.8,2297.5,3.23316141]
[1726550677133,4.4317947,2297.8,2297.6,3.36381878]
[1726550677417,4.4317947,2297.8,2297.5,3.23316141]
[1726550677600,4.4317947,2297.8,2297.6,3.3635774]
[1726550677803,4.4317947,2297.8,2297.5,3.23316141]
[1726550677999,4.4317947,2297.8,2297.6,3.36343731]
[1726550678210,4.4317947,2297.8,2297.5,3.23316141]
[1726550678483,4.4317947,2297.8,2297.6,3.36345878]
[1726550678607,4.4317947,2297.8,2297.5,3.23316141]
[1726550678945,6.9104947,2297.8,2297.6,3.36379665]
[1726550679121,6.9104947,2297.8,2297.5,0.91056141]
[1726550679435,6.9104947,2297.8,2297.6,3.36407588]
[1726550679739,6.9104947,2297.8,2297.5,0.91056141]
[1726550680032,6.9104947,2297.8,2297.6,3.36377278]
[1726550680193,6.9104947,2297.8,2297.5,0.91056141]
[1726550680393,6.9104947,2297.8,2297.6,3.36371563]
[1726550680599,6.9104947,2297.8,2297.5,0.91056141]
[1726550680818,6.9104947,2297.8,2297.6,3.36339271]
[1726550681027,6.9104947,2297.8,2297.5,0.91056141]
[1726550681226,6.9104947,2297.8,2297.6,3.36339052]
[1726550681437,6.9104947,2297.8,2297.5,0.91056141]
[1726550681639,6.9104947,2297.8,2297.6,3.3630717]
[1726550681941,6.9104947,2297.8,2297.5,0.91056141]
[1726550682142,6.9104947,2297.8,2297.6,3.36310928]
[1726550682447,6.9104947,2297.8,2297.5,0.91056141]
[1726550682612,6.9104947,2297.8,2297.6,3.36303242]
[1726550682823,6.9104947,2297.8,2297.6,1.44340817]
[1726550683131,6.9104947,2297.8,2297.7,1.34514569]
[1726550683641,6.9104947,2297.8,2297.6,1.44340817]
[1726550683810,6.9104947,2297.8,2297.7,1.34512117]
[1726550684226,6.9104947,2297.8,2297.6,1.44340817]
[1726550685043,6.9104947,2297.8,2297.7,1.34509945]
[1726550685449,6.9104947,2297.8,2297.6,1.44340817]
[1726550698371,0.0798147,2297.8,2297.6,1.44340817]
[1726550698579,0.0798147,2297.8,2297.7,1.34480944]
[1726550699358,0.0798147,2297.8,2297.6,2.92190833]
[1726550699564,0.0798147,2297.8,2297.7,1.344988]
[1726550701114,0.0798147,2297.8,2297.7,3.36240481]
[1726550701291,0.0798147,2297.8,2297.7,10.20470793]
[1726550701622,0.07721417,2297.8,2297.7,13.53485319]
[1726550701832,4.35159,2298.1,2297.7,13.53485319]
[1726550701985,4.35159,2298.1,2297.8,2.78839617]
[1726550702185,4.35159,2298.1,2297.8,1.44340817]
[1726550703210,4.35162,2298.0,2297.8,1.44340817]
[1726550705141,4.35162,2298.0,2297.7,2.4031]
[1726550705820,4.35162,2298.0,2297.8,1.3449972]
[1726550705992,4.35162,2298.0,2297.7,2.4031]
[1726550705993,0.07466967,2297.9,2297.7,2.4031]
[1726550706194,0.07466967,2297.9,2297.8,1.34501084]
[1726550706740,0.07466967,2297.9,2297.8,1.34503156]
[1726550707021,0.07466967,2297.9,2297.7,2.4031]
[1726550707736,4.35159,2298.1,2297.8,1.44340817]
[1726550707737,4.35161,2298.0,2297.8,1.44340817]
[1726550708394,4.35159,2298.1,2297.8,1.44340817]
[1726550708605,8.70313,2298.1,2297.8,1.44340817]
[1726550709316,4.35151,2298.1,2297.8,1.44340817]
[1726550709544,8.70307,2298.1,2297.8,1.44340817]
[1726550711141,8.70309,2298.1,2297.8,1.44340817]
[1726550712723,4.35151,2298.1,2297.8,1.44340817]
[1726550712908,8.70307,2298.1,2297.8,1.44340817]
[1726550713355,4.35151,2298.1,2297.8,1.44340817]
[1726550715146,4.35151,2298.1,2297.9,1.34469046]
[1726550715436,4.35151,2298.1,2297.8,1.44340817]
[1726550717601,2.3007,2298.2,2297.8,1.44340817]
[1726550717804,6.65209,2298.2,2297.9,1.34424014]
[1726550717980,4.35142,2298.1,2297.8,1.44340817]
[1726550718306,4.35142,2298.1,2297.9,1.34414955]
[1726550718496,4.35142,2298.1,2297.8,1.44340817]
[1726550718799,4.35142,2298.1,2297.9,1.34392997]
[1726550718981,4.35142,2298.1,2297.8,1.44340817]
[1726550719170,4.35142,2298.1,2297.9,1.34379808]
[1726550719366,4.35142,2298.1,2297.8,1.44340817]
[1726550719976,6.65194,2298.2,2297.9,1.34351438]
[1726550720185,6.65194,2298.2,2297.8,1.44340817]
[1726550720376,6.65194,2298.2,2297.9,1.34337083]
[1726550720595,6.65194,2298.2,2297.8,1.44340817]
[1726550721218,0.07217642,2298.1,2297.8,1.44340817]
[1726550722304,0.07217642,2298.1,2297.8,2.49100433]
[1726550724309,0.07217642,2298.1,2298.0,8.24931817]
[1726550724522,11.8208,2298.5,2298.0,12.6043165]
[1726550724688,4.3508,2298.5,2298.4,1.44340817]
[1726550725320,4.3508,2298.5,2298.2,1.44340817]
[1726550728588,4.35086,2298.4,2298.0,3.89770817]
[1726550729181,4.35077,2298.5,2298.0,3.89770817]
[1726550729413,4.35077,2298.5,2298.1,0.82493282]
[1726550729773,4.3509,2298.4,2298.1,0.82493282]
[1726550729981,6.815,2298.4,2298.1,0.82493282]
[1726550730414,2.4641,2298.4,2298.1,0.82493282]
[1726550732312,4.35077,2298.5,2298.1,0.82493282]
[1726550732474,4.35077,2298.5,2298.2,0.9074241]
[1726550734323,4.35077,2298.5,2298.1,0.82493282]
[1726550735132,4.35087,2298.4,2298.1,0.82493282]
[1726550736103,0.06886364,2298.3,2298.1,0.82493282]
[1726550737801,2.38936364,2298.3,2298.1,0.82493282]
[1726550741517,0.06886364,2298.3,2298.1,0.82493282]
[1726550741719,0.06886364,2298.3,2298.2,0.9074241]
[1726550743293,0.06886364,2298.3,2298.1,0.82493282]
[1726550746228,0.06886364,2298.3,2298.0,8.24930817]
[1726550746527,0.06886364,2298.3,2298.0,8.24927817]
[1726550750493,0.06886364,2298.3,2298.0,3.89770817]
[1726550756937,4.41992364,2298.3,2298.0,3.89770817]
[1726550757803,4.41992364,2298.3,2298.0,8.24925817]
[1726550757804,0.06886364,2298.3,2298.0,8.24925817]
[1726550760216,0.06886364,2298.3,2298.0,8.33627616]
[1726550760548,0.06886364,2298.3,2298.0,8.24925817]
[1726550762452,0.06886364,2298.3,2298.0,8.33627622]
[1726550762755,0.06886364,2298.3,2298.0,8.24925817]
[1726550763211,0.06886364,2298.3,2298.1,1.34356681]
[1726550763410,0.06886364,2298.3,2298.0,8.24925817]
[1726550763660,0.06886364,2298.3,2298.1,1.34358353]
[1726550763830,0.06886364,2298.3,2298.0,8.24925817]
[1726550764157,0.06886364,2298.3,2298.1,1.34357623]
[1726550764326,0.06886364,2298.3,2298.0,8.24925817]
[1726550764532,0.06886364,2298.3,2298.1,1.3436528]
[1726550764731,0.06886364,2298.3,2298.0,8.24925817]
[1726550764938,0.06886364,2298.3,2298.1,1.34369222]
[1726550765145,0.06886364,2298.3,2298.0,8.24925817]
[1726550765355,0.06886364,2298.3,2298.1,1.34377156]
[1726550765560,0.06886364,2298.3,2298.0,8.24925817]
[1726550765761,0.06886364,2298.3,2298.1,1.34376346]
[1726550766064,0.06886364,2298.3,2298.0,8.24925817]
[1726550766230,0.06886364,2298.3,2298.1,1.34376428]
[1726550766575,0.06886364,2298.3,2298.0,9.15981958]
[1726550766872,0.06886364,2298.3,2298.1,1.34386063]
[1726550767169,0.06886364,2298.3,2298.0,10.66138521]
[1726550767378,2.56426364,2298.3,2298.1,3.35997945]
[1726550767674,2.56426364,2298.3,2298.0,0.91056141]
[1726550767981,2.56426364,2298.3,2298.1,3.3600655]
[1726550768129,2.56426364,2298.3,2298.0,0.91056141]
[1726550768325,2.56426364,2298.3,2298.1,3.36045698]
[1726550768528,2.56426364,2298.3,2298.0,5.26214141]
[1726550768769,2.56426364,2298.3,2298.1,3.36040503]
[1726550769063,2.56426364,2298.3,2298.0,5.26214141]
[1726550769231,2.56426364,2298.3,2298.1,3.3603747]
[1726550769427,2.56426364,2298.3,2298.2,1.34414988]
[1726550769666,2.56426364,2298.3,2298.2,3.36051627]
[1726550772978,0.06886364,2298.3,2298.2,3.36049415]
[1726550773375,6.68617,2298.5,2298.2,3.36049415]
[1726550773542,0.067064,2298.3,2298.1,2.35396958]
[1726550773744,6.68617,2298.5,2298.2,3.36022456]
[1726550773995,0.06715364,2298.4,2298.1,2.35396958]
[1726550774150,0.06715364,2298.4,2298.2,3.36011842]
[1726550774493,0.06715364,2298.4,2298.1,2.35396958]
[1726550774785,0.06715364,2298.4,2298.2,3.36007193]
[1726550774966,0.06715364,2298.4,2298.1,2.35396958]
[1726550775172,0.06715364,2298.4,2298.2,3.36013035]
[1726550775369,0.06715364,2298.4,2298.1,2.35396958]
[1726550775577,0.06715364,2298.4,2298.2,3.36006907]
[1726550775746,0.06715364,2298.4,2298.1,2.35396958]
[1726550775948,0.06715364,2298.4,2298.2,3.36005236]
[1726550776148,0.06715364,2298.4,2298.1,2.35396958]
[1726550776364,0.06715364,2298.4,2298.2,1.34402312]
[1726550776681,0.06715364,2298.4,2298.1,1.44340817]
[1726550776887,0.06715364,2298.4,2298.2,1.34404952]
[1726550777045,0.06715364,2298.4,2298.1,1.44340817]
[1726550777245,0.06715364,2298.4,2298.2,1.34403011]
[1726550777546,0.06715364,2298.4,2298.1,1.44340817]
[1726550777882,0.06715364,2298.4,2298.2,1.34403202]
[1726550778057,0.06715364,2298.4,2298.1,1.44340817]
[1726550778258,0.06715364,2298.4,2298.2,1.3440255]
[1726550778478,0.06715364,2298.4,2298.1,1.44340817]
[1726550778691,0.06715364,2298.4,2298.2,1.34405236]
[1726550778865,0.06715364,2298.4,2298.1,1.44340817]
[1726550779073,0.06715364,2298.4,2298.2,1.34405385]
[1726550779372,0.06715364,2298.4,2298.1,1.44340817]
[1726550779569,0.06715364,2298.4,2298.2,1.34406254]
[1726550779778,0.06715364,2298.4,2298.1,2.35396958]
[1726550779985,0.06715364,2298.4,2298.2,1.34407194]
[1726550780159,0.06715364,2298.4,2298.1,1.44340817]
[1726550780360,0.06715364,2298.4,2298.2,1.34409917]
[1726550780602,0.06715364,2298.4,2298.1,1.44340817]
[1726550780893,0.06715364,2298.4,2298.2,1.34411291]
[1726550781090,0.06715364,2298.4,2298.1,2.35396958]
[1726550781296,0.06715364,2298.4,2298.2,3.36010852]
[1726550781499,0.06715364,2298.4,2298.1,2.35396958]
[1726550781658,0.06715364,2298.4,2298.2,3.36009147]
[1726550781858,0.06715364,2298.4,2298.1,2.35396958]
[1726550782095,0.06715364,2298.4,2298.2,3.36009038]
[1726550782415,0.06715364,2298.4,2298.1,1.44340817]
[1726550782561,0.06715364,2298.4,2298.2,1.34404609]
[1726550782762,0.06715364,2298.4,2298.1,1.44340817]
[1726550782960,0.06715364,2298.4,2298.2,1.34400195]
[1726550783261,0.06715364,2298.4,2298.1,1.44340817]
[1726550783465,0.06715364,2298.4,2298.2,1.34399557]
[1726550783720,0.06715364,2298.4,2298.1,1.44340817]
[1726550783897,2.4617,2298.3,2298.2,1.34397955]
[1726550784262,2.52655621,2298.3,2298.0,5.26213141]
[1726550784485,2.52655621,2298.3,2298.1,3.36016498]
[1726550784697,2.52655621,2298.3,2298.0,5.26213141]
[1726550784698,2.52655621,2298.3,2298.2,1.34408657]
[1726550784862,2.52655621,2298.3,2298.0,5.26213141]
[1726550785068,2.52655621,2298.3,2298.1,3.36030017]
[1726550785267,2.52655621,2298.3,2298.0,5.26213141]
[1726550785506,2.52655621,2298.3,2298.1,3.36029413]
[1726550785806,2.52655621,2298.3,2298.2,1.34414501]
[1726550786107,6.87760621,2298.3,2298.2,1.34412721]
[1726550786315,6.87760621,2298.3,2298.0,0.91056141]
[1726550786316,12.35146683,2298.3,2298.0,0.91056141]
[1726550786468,2.4617,2298.1,2297.8,0.91056141]
[1726550786809,0.06483811,2298.0,2297.7,5.26272141]
[1726550787009,0.06483811,2298.0,2297.8,3.36143763]
[1726550787166,0.06483811,2298.0,2297.8,1.44340817]
[1726550788469,0.06483811,2298.0,2297.9,1.34399412]
[1726550789585,0.06483811,2298.0,2297.8,1.44340817]
[1726550790409,0.06483811,2298.0,2297.9,1.34384826]
[1726550790702,0.06483811,2298.0,2297.8,1.44340817]
[1726550808177,0.06483811,2298.0,2297.9,12.14894809]
[1726550808327,7.47,2298.5,2298.1,2.4776]
[1726550808528,0.05968775,2298.4,2298.1,2.4776]
[1726550810152,6.82202,2298.6,2298.1,6.829]
[1726550810352,0.06018884,2298.5,2298.1,6.829]
[1726550810996,4.41084884,2298.5,2298.1,2.4776]
[1726550813881,4.41084884,2298.5,2298.2,1.44340817]
[1726550818705,0.06018884,2298.5,2298.4,3.71600817]
[1726550818997,8.70074,2298.7,2298.4,3.71600817]
[1726550819197,0.05832164,2298.6,2298.4,3.71600817]
[1726550821977,0.05832164,2298.6,2298.4,3.71443728]
[1726550825762,4.40879164,2298.6,2298.4,3.71443728]
[1726550828867,5.55960677,2298.6,2298.2,2.4453]
[1726550829074,5.55960677,2298.6,2298.2,3.88870817]
[1726550831134,0.05832164,2298.6,2298.4,1.44340817]
[1726550831406,7.09924962,2298.8,2298.5,2.2826]
[1726550831407,0.45528962,2298.8,2298.5,2.2826]
[1726550831569,0.05644861,2298.7,2298.5,2.2826]
[1726550831766,4.35009,2298.8,2298.5,2.2826]
[1726550832008,0.05641332,2298.7,2298.5,2.2826]
[1726550832191,4.35009,2298.8,2298.5,2.2826]
[1726550832395,0.05641332,2298.7,2298.5,2.2826]
[1726550832596,4.35009,2298.8,2298.5,2.2826]
[1726550832801,0.05641332,2298.7,2298.5,2.2826]
[1726550833111,4.35009,2298.8,2298.5,2.2826]
[1726550833278,4.35009,2298.8,2298.4,1.44340817]
[1726550833279,0.05653545,2298.6,2298.4,1.44340817]
[1726550833480,12.143519,2298.8,2298.4,1.44340817]
[1726550834108,0.05662507,2298.7,2298.4,1.44340817]
[1726550834608,0.05653545,2298.6,2298.4,1.44340817]
[1726550834806,7.793299,2298.8,2298.4,1.44340817]
[1726550834997,0.05662507,2298.7,2298.4,1.44340817]
[1726550835200,7.793299,2298.8,2298.4,1.44340817]
[1726550835405,0.05662507,2298.7,2298.4,1.44340817]
[1726550835599,4.35039,2298.7,2298.4,1.44340817]
[1726550835805,0.05653545,2298.6,2298.4,1.44340817]
[1726550840308,0.05653545,2298.6,2298.5,2.3492]
[1726550840617,4.34995,2298.9,2298.5,6.69985]
[1726550840783,0.05671467,2298.8,2298.6,1.44340817]
[1726550842644,0.05671467,2298.8,2298.5,2.3492]
[1726550845629,0.05671467,2298.8,2298.5,6.69986]
[1726550847576,0.05671467,2298.8,2298.6,1.44340817]
[1726550850836,0.05671467,2298.8,2298.6,5.79377817]
[1726550851247,6.628,2299.0,2298.6,5.79377817]
[1726550851487,0.05660149,2298.7,2298.6,5.79377817]
[1726550851777,0.05681324,2298.7,2298.6,2.26640636]
[1726550851949,6.628,2299.0,2298.6,1.44340817]
[1726550852155,0.05699244,2298.9,2298.6,5.79378817]
[1726550852342,0.05699244,2298.9,2298.8,1.44340817]
[1726550852546,4.34954,2299.1,2298.8,3.88570817]
[1726550852765,0.05708202,2299.0,2298.8,3.88570817]
[1726550855478,14.26603,2299.2,2298.8,3.88570817]
[1726550855686,0.05716653,2298.9,2298.8,3.88570817]
[1726550856195,14.26603,2299.2,2298.8,3.88570817]
[1726550856389,0.005,2299.2,2299.1,1.44340817]
[1726550857249,0.005,2299.2,2299.1,5.79292817]
[1726550857446,0.005,2299.2,2299.1,1.44340817]
[1726550857947,0.005,2299.2,2299.1,9.19348244]
[1726550858152,0.005,2299.2,2299.1,6.72712]
[1726550858392,0.005,2299.2,2299.1,3.82100817]
[1726550858686,0.005,2299.2,2299.1,5.79292817]